[Event "Late-Titled-Tuesday-Blitz-October-17-2023"]
[Site "Chess.com"]
[Date "2023.10.17"]
[Round "2"]
[White "lluiss"]
[Black "SergioMoralesG"]
[Result "1-0"]
[WhiteElo "2176"]
[BlackElo "2429"]
[TimeControl "180+1"]
[EndTime "14:15:09 PDT"]
[Termination "lluiss won by resignation"]

1. Nf3 {[%clk 0:03:00.9]} 1... c5 {[%clk 0:02:59]} 2. c4 {[%clk 0:03:00.5]} 2...
Nc6 {[%clk 0:02:59]} 3. Nc3 {[%clk 0:03:01.1]} 3... g6 {[%clk 0:02:59.2]} 4. e3
{[%clk 0:03:01.6]} 4... Bg7 {[%clk 0:02:58.9]} 5. d4 {[%clk 0:03:02]} 5... cxd4
{[%clk 0:02:45.4]} 6. exd4 {[%clk 0:03:01.5]} 6... d6 {[%clk 0:02:45.6]} 7. d5
{[%clk 0:02:58.1]} 7... Nb8 {[%clk 0:02:40.6]} 8. Nd4 {[%clk 0:02:53.7]} 8...
Nf6 {[%clk 0:02:38.1]} 9. h3 {[%clk 0:02:51]} 9... Nbd7 {[%clk 0:02:34.4]} 10.
Be2 {[%clk 0:02:50.9]} 10... a6 {[%clk 0:02:25.2]} 11. O-O {[%clk 0:02:50.7]}
11... O-O {[%clk 0:02:24.7]} 12. Be3 {[%clk 0:02:50.4]} 12... Nc5 {[%clk
0:02:20.3]} 13. Qc2 {[%clk 0:02:50.1]} 13... e5 {[%clk 0:02:11]} 14. dxe6 {[%clk
0:02:49.5]} 14... Nxe6 {[%clk 0:02:08]} 15. Rfd1 {[%clk 0:02:41.7]} 15... Nh5
{[%clk 0:02:04]} 16. Bxh5 {[%clk 0:02:37.9]} 16... gxh5 {[%clk 0:02:04]} 17. Nf5
{[%clk 0:02:35.7]} 17... Qf6 {[%clk 0:01:35.9]} 18. Nxg7 {[%clk 0:02:12.5]}
18... Qxg7 {[%clk 0:01:35.9]} 19. Rxd6 {[%clk 0:02:10.4]} 19... Nc7 {[%clk
0:01:36]} 20. Bd4 {[%clk 0:02:05.6]} 20... Qg5 {[%clk 0:01:27.3]} 21. Be3 {[%clk
0:01:50.6]} 21... Qe7 {[%clk 0:01:21.6]} 22. Qd2 {[%clk 0:01:30.2]} 22... Bf5
{[%clk 0:01:13]} 23. Rd1 {[%clk 0:01:20.5]} 23... Rfd8 {[%clk 0:00:58]} 24.
Rxd8+ {[%clk 0:01:17.6]} 24... Rxd8 {[%clk 0:00:56.5]} 25. Qxd8+ {[%clk
0:01:17.6]} 1-0

[Event "Late-Titled-Tuesday-Blitz-October-17-2023"]
[Site "Chess.com"]
[Date "2023.10.17"]
[Round "2"]
[White "emirgulbeyaz"]
[Black "The_Machine04"]
[Result "0-1"]
[WhiteElo "2396"]
[BlackElo "2715"]
[TimeControl "180+1"]
[EndTime "14:15:17 PDT"]
[Termination "The_Machine04 won by resignation"]

1. d4 {[%clk 0:03:00.9]} 1... d6 {[%clk 0:02:59.3]} 2. Bf4 {[%clk 0:03:00.2]}
2... Nf6 {[%clk 0:02:59.6]} 3. Nc3 {[%clk 0:02:59.9]} 3... Nc6 {[%clk
0:02:57.5]} 4. Nf3 {[%clk 0:02:59.4]} 4... g6 {[%clk 0:02:54.6]} 5. e4 {[%clk
0:02:59.9]} 5... Bg7 {[%clk 0:02:54.3]} 6. Qd2 {[%clk 0:03:00.6]} 6... O-O
{[%clk 0:02:54.7]} 7. Bh6 {[%clk 0:03:00]} 7... e5 {[%clk 0:02:52.9]} 8. d5
{[%clk 0:02:59.4]} 8... Nd4 {[%clk 0:02:51.4]} 9. Bxg7 {[%clk 0:02:58.9]} 9...
Nxf3+ {[%clk 0:02:51.3]} 10. gxf3 {[%clk 0:02:59.8]} 10... Kxg7 {[%clk 0:02:52]}
11. O-O-O {[%clk 0:02:58.2]} 11... Nh5 {[%clk 0:02:52.3]} 12. Ne2 {[%clk
0:02:55.7]} 12... Qh4 {[%clk 0:02:50.1]} 13. Qe3 {[%clk 0:02:55.6]} 13... Bd7
{[%clk 0:02:47.4]} 14. Kb1 {[%clk 0:02:45.7]} 14... f5 {[%clk 0:02:46.6]} 15.
Qc3 {[%clk 0:02:36.3]} 15... Rac8 {[%clk 0:02:41.9]} 16. exf5 {[%clk 0:02:31.6]}
16... Bxf5 {[%clk 0:02:35.1]} 17. Ng3 {[%clk 0:02:30.4]} 17... Nf4 {[%clk
0:02:28.9]} 18. Bc4 {[%clk 0:02:13.1]} 18... Bh3 {[%clk 0:02:21.4]} 19. Rhg1
{[%clk 0:02:07.7]} 19... Rf7 {[%clk 0:02:18.5]} 20. Qe3 {[%clk 0:02:05.6]} 20...
b6 {[%clk 0:02:16.2]} 21. Bf1 {[%clk 0:01:37]} 21... Bd7 {[%clk 0:02:07]} 22.
Bd3 {[%clk 0:01:19.8]} 22... Rcf8 {[%clk 0:02:05.3]} 23. Be4 {[%clk 0:01:19.4]}
23... Bh3 {[%clk 0:01:49.4]} 24. a3 {[%clk 0:01:19.3]} 24... a5 {[%clk
0:01:47.8]} 25. Qc3 {[%clk 0:01:14.8]} 25... Kh8 {[%clk 0:01:44.7]} 26. Qe3
{[%clk 0:01:13.6]} 26... Bg2 {[%clk 0:01:42.7]} 27. Ne2 {[%clk 0:01:02.9]} 27...
Nxe2 {[%clk 0:01:25.2]} 28. Qxe2 {[%clk 0:01:02]} 28... Bxf3 {[%clk 0:01:23.6]}
29. Bxf3 {[%clk 0:01:00.6]} 29... Rxf3 {[%clk 0:01:24.5]} 30. Qc4 {[%clk
0:01:01.1]} 30... Qxc4 {[%clk 0:01:19.6]} 0-1

[Event "Late-Titled-Tuesday-Blitz-October-17-2023"]
[Site "Chess.com"]
[Date "2023.10.17"]
[Round "2"]
[White "K_A_S_T_O_R"]
[Black "jup1978"]
[Result "1-0"]
[WhiteElo "2876"]
[BlackElo "2547"]
[TimeControl "180+1"]
[EndTime "14:15:24 PDT"]
[Termination "K_A_S_T_O_R won by resignation"]

1. e4 {[%clk 0:03:00.9]} 1... e5 {[%clk 0:02:59.7]} 2. Nf3 {[%clk 0:03:00.2]}
2... Nf6 {[%clk 0:03:00.3]} 3. d3 {[%clk 0:02:59.8]} 3... Nc6 {[%clk 0:02:59.3]}
4. c3 {[%clk 0:02:59.7]} 4... a5 {[%clk 0:02:59]} 5. Be2 {[%clk 0:02:59.7]} 5...
Bc5 {[%clk 0:02:58.4]} 6. O-O {[%clk 0:02:59.2]} 6... O-O {[%clk 0:02:58.4]} 7.
b3 {[%clk 0:02:57.3]} 7... Re8 {[%clk 0:02:53.6]} 8. a3 {[%clk 0:02:57.1]} 8...
d5 {[%clk 0:02:50.8]} 9. Nbd2 {[%clk 0:02:57.3]} 9... dxe4 {[%clk 0:02:50.2]}
10. dxe4 {[%clk 0:02:57.1]} 10... b6 {[%clk 0:02:39.1]} 11. Bb2 {[%clk
0:02:54.9]} 11... Qe7 {[%clk 0:02:31.5]} 12. b4 {[%clk 0:02:54.4]} 12... axb4
{[%clk 0:02:29.7]} 13. axb4 {[%clk 0:02:53.8]} 13... Rxa1 {[%clk 0:02:30]} 14.
Bxa1 {[%clk 0:02:54.1]} 14... Bd6 {[%clk 0:02:27.7]} 15. Qc2 {[%clk 0:02:50.3]}
15... Bb7 {[%clk 0:02:25.1]} 16. Re1 {[%clk 0:02:48.4]} 16... Ra8 {[%clk
0:02:23.7]} 17. Bb2 {[%clk 0:02:47.5]} 17... h6 {[%clk 0:02:22.1]} 18. Bc4
{[%clk 0:02:46.8]} 18... Bc8 {[%clk 0:02:17.7]} 19. Nf1 {[%clk 0:02:32.4]} 19...
Be6 {[%clk 0:02:14.2]} 20. Ne3 {[%clk 0:02:32.8]} 20... Bxc4 {[%clk 0:02:13.3]}
21. Nxc4 {[%clk 0:02:33.3]} 21... Nd8 {[%clk 0:02:10.3]} 22. Ne3 {[%clk
0:02:29.4]} 22... g6 {[%clk 0:02:08.2]} 23. Bc1 {[%clk 0:02:28.3]} 23... Kg7
{[%clk 0:02:06]} 24. Nc4 {[%clk 0:02:21.9]} 24... b5 {[%clk 0:02:02.7]} 25. Nxd6
{[%clk 0:02:11.4]} 25... cxd6 {[%clk 0:02:01.8]} 26. Qd3 {[%clk 0:02:08.2]}
26... Rc8 {[%clk 0:01:58]} 27. Bb2 {[%clk 0:01:53.5]} 27... Qd7 {[%clk 0:01:48]}
28. Nd2 {[%clk 0:01:50.8]} 28... Ne6 {[%clk 0:01:46]} 29. g3 {[%clk 0:01:50]}
29... Qc6 {[%clk 0:01:41.5]} 30. Ra1 {[%clk 0:01:44.3]} 30... d5 {[%clk
0:01:23.5]} 31. exd5 {[%clk 0:01:43.4]} 31... Qxd5 {[%clk 0:01:23.6]} 32. Qxd5
{[%clk 0:01:38.4]} 32... Nxd5 {[%clk 0:01:24.5]} 33. Ne4 {[%clk 0:01:29.1]}
33... Rc7 {[%clk 0:01:18.2]} 34. Nd6 {[%clk 0:01:26.9]} 34... Nxc3 {[%clk
0:01:11.4]} 35. Ne8+ {[%clk 0:01:26.1]} 35... Kh7 {[%clk 0:01:07.5]} 36. Nxc7
{[%clk 0:01:25.8]} 36... Ne2+ {[%clk 0:01:06.4]} 37. Kf1 {[%clk 0:01:25.1]} 1-0

[Event "Late-Titled-Tuesday-Blitz-October-17-2023"]
[Site "Chess.com"]
[Date "2023.10.17"]
[Round "2"]
[White "dmarcolino"]
[Black "CarrotsandPizza"]
[Result "0-1"]
[WhiteElo "2092"]
[BlackElo "2440"]
[TimeControl "180+1"]
[EndTime "14:15:26 PDT"]
[Termination "CarrotsandPizza won by resignation"]

1. d4 {[%clk 0:03:00.9]} 1... Nf6 {[%clk 0:02:55.3]} 2. Nf3 {[%clk 0:03:00.1]}
2... g6 {[%clk 0:02:55.8]} 3. Bg5 {[%clk 0:03:00]} 3... Bg7 {[%clk 0:02:56.2]}
4. Nbd2 {[%clk 0:02:59.4]} 4... O-O {[%clk 0:02:56.8]} 5. e4 {[%clk 0:02:59.1]}
5... d6 {[%clk 0:02:57.3]} 6. Bd3 {[%clk 0:02:58.8]} 6... c5 {[%clk 0:02:57.8]}
7. c3 {[%clk 0:02:58.7]} 7... h6 {[%clk 0:02:57.7]} 8. Bh4 {[%clk 0:02:55.2]}
8... cxd4 {[%clk 0:02:57.8]} 9. cxd4 {[%clk 0:02:54.9]} 9... Qb6 {[%clk
0:02:53.7]} 10. Nc4 {[%clk 0:02:47.2]} 10... Qb4+ {[%clk 0:02:53]} 11. Qd2
{[%clk 0:02:47]} 11... Qxd2+ {[%clk 0:02:52.7]} 12. Nfxd2 {[%clk 0:02:33.3]}
12... Nc6 {[%clk 0:02:51.6]} 13. Nb3 {[%clk 0:02:01.1]} 13... g5 {[%clk
0:02:48.4]} 14. Bg3 {[%clk 0:02:00.6]} 14... Nh5 {[%clk 0:02:48.7]} 15. e5
{[%clk 0:01:02.9]} 15... Nxg3 {[%clk 0:02:48.2]} 16. hxg3 {[%clk 0:01:02.8]}
16... dxe5 {[%clk 0:02:43]} 17. dxe5 {[%clk 0:00:59.3]} 17... Be6 {[%clk
0:02:40.4]} 18. Nbd2 {[%clk 0:00:52.8]} 18... Rfd8 {[%clk 0:02:38.3]} 19. Be4
{[%clk 0:00:42.2]} 19... Nxe5 {[%clk 0:02:17.1]} 20. Nxe5 {[%clk 0:00:40.5]}
20... Bxe5 {[%clk 0:02:17.3]} 21. Rxh6 {[%clk 0:00:32.2]} 21... Bxb2 {[%clk
0:02:06.4]} 22. Rd1 {[%clk 0:00:17.3]} 22... Bc3 {[%clk 0:02:06.6]} 23. Ke2
{[%clk 0:00:12.9]} 23... Rac8 {[%clk 0:01:57.1]} 24. Bxb7 {[%clk 0:00:07.6]}
24... Rb8 {[%clk 0:01:57.3]} 25. Be4 {[%clk 0:00:06.4]} 25... Rb2 {[%clk
0:01:57]} 26. Ke3 {[%clk 0:00:05.7]} 26... Bxd2+ {[%clk 0:01:56.5]} 0-1

[Event "Late-Titled-Tuesday-Blitz-October-17-2023"]
[Site "Chess.com"]
[Date "2023.10.17"]
[Round "2"]
[White "WilliamAlfaroCaracas"]
[Black "Lion_DL"]
[Result "0-1"]
[WhiteElo "2188"]
[BlackElo "2456"]
[TimeControl "180+1"]
[EndTime "14:15:40 PDT"]
[Termination "Lion_DL won by resignation"]

1. e4 {[%clk 0:03:00.9]} 1... Nc6 {[%clk 0:02:58.8]} 2. d4 {[%clk 0:02:57.5]}
2... d5 {[%clk 0:02:58.7]} 3. e5 {[%clk 0:02:48.2]} 3... f6 {[%clk 0:02:57.9]}
4. f4 {[%clk 0:02:36]} 4... Bf5 {[%clk 0:02:58.2]} 5. Nf3 {[%clk 0:02:26.6]}
5... e6 {[%clk 0:02:57.2]} 6. Bd3 {[%clk 0:02:18.4]} 6... Nh6 {[%clk 0:02:56.5]}
7. O-O {[%clk 0:02:16.2]} 7... Be7 {[%clk 0:02:55.4]} 8. c3 {[%clk 0:01:56.6]}
8... O-O {[%clk 0:02:53.8]} 9. exf6 {[%clk 0:01:47.4]} 9... Bxf6 {[%clk
0:02:38.5]} 10. Ne5 {[%clk 0:01:47]} 10... Nxe5 {[%clk 0:02:31.3]} 11. fxe5
{[%clk 0:01:27.3]} 11... Bg5 {[%clk 0:02:31.4]} 12. Bxf5 {[%clk 0:01:09.8]}
12... Nxf5 {[%clk 0:02:27.5]} 13. Bxg5 {[%clk 0:00:58.5]} 13... Qxg5 {[%clk
0:02:28.4]} 14. Qd2 {[%clk 0:00:54.4]} 14... Qg6 {[%clk 0:01:50.3]} 15. Na3
{[%clk 0:00:52.7]} 15... a6 {[%clk 0:01:45.6]} 16. Nc2 {[%clk 0:00:46.6]} 16...
Nh4 {[%clk 0:01:41.3]} 17. Ne3 {[%clk 0:00:38.3]} 17... Nf3+ {[%clk 0:01:38.4]}
18. Rxf3 {[%clk 0:00:36.5]} 18... Rxf3 {[%clk 0:01:39.3]} 19. Kh1 {[%clk
0:00:26.5]} 19... Rf7 {[%clk 0:01:37.1]} 20. c4 {[%clk 0:00:24.5]} 20... c6
{[%clk 0:01:35.1]} 21. cxd5 {[%clk 0:00:20]} 21... cxd5 {[%clk 0:01:36]} 22. Rc1
{[%clk 0:00:19.6]} 22... Raf8 {[%clk 0:01:36.3]} 23. h3 {[%clk 0:00:09.3]} 23...
Qg3 {[%clk 0:01:32.5]} 24. Ng4 {[%clk 0:00:09.3]} 0-1

[Event "Late-Titled-Tuesday-Blitz-October-17-2023"]
[Site "Chess.com"]
[Date "2023.10.17"]
[Round "2"]
[White "Efremov_Vlad"]
[Black "morte-negra"]
[Result "1-0"]
[WhiteElo "2401"]
[BlackElo "1938"]
[TimeControl "180+1"]
[EndTime "14:15:42 PDT"]
[Termination "Efremov_Vlad won on time"]

1. d4 {[%clk 0:03:00.9]} 1... Nf6 {[%clk 0:02:54.8]} 2. c4 {[%clk 0:03:00.8]}
2... c5 {[%clk 0:02:50.2]} 3. d5 {[%clk 0:02:59.9]} 3... e6 {[%clk 0:02:50.6]}
4. Nc3 {[%clk 0:03:00.5]} 4... exd5 {[%clk 0:02:50.5]} 5. cxd5 {[%clk
0:03:01.4]} 5... d6 {[%clk 0:02:50.9]} 6. e4 {[%clk 0:03:01.7]} 6... g6 {[%clk
0:02:50.8]} 7. f4 {[%clk 0:03:02.5]} 7... Bg7 {[%clk 0:02:42.7]} 8. Bb5+ {[%clk
0:03:02.4]} 8... Nfd7 {[%clk 0:02:41.4]} 9. Bd3 {[%clk 0:02:58.9]} 9... O-O
{[%clk 0:02:39.3]} 10. Nf3 {[%clk 0:02:59.4]} 10... Re8 {[%clk 0:02:37.6]} 11.
O-O {[%clk 0:02:59.6]} 11... Na6 {[%clk 0:02:36.1]} 12. Be3 {[%clk 0:02:58.2]}
12... Rb8 {[%clk 0:02:31.7]} 13. Qd2 {[%clk 0:02:45.8]} 13... Nb4 {[%clk
0:02:15.1]} 14. Bb1 {[%clk 0:02:40.4]} 14... b5 {[%clk 0:02:14.3]} 15. a3 {[%clk
0:02:40.5]} 15... Na6 {[%clk 0:02:12.8]} 16. Bc2 {[%clk 0:02:40.3]} 16... Nc7
{[%clk 0:01:42]} 17. Rae1 {[%clk 0:02:35.5]} 17... a5 {[%clk 0:01:39.7]} 18. e5
{[%clk 0:02:22.3]} 18... dxe5 {[%clk 0:01:36.2]} 19. d6 {[%clk 0:02:23.2]} 19...
Na6 {[%clk 0:01:27.8]} 20. Nd5 {[%clk 0:02:19.7]} 20... e4 {[%clk 0:01:09.8]}
21. Ne7+ {[%clk 0:02:14.8]} 21... Rxe7 {[%clk 0:01:06.1]} 22. dxe7 {[%clk
0:02:15.7]} 22... Qxe7 {[%clk 0:01:06.1]} 23. Ng5 {[%clk 0:02:15.7]} 23... f5
{[%clk 0:00:51.7]} 24. Qd5+ {[%clk 0:02:14.8]} 24... Kf8 {[%clk 0:00:18.5]} 25.
Ne6+ {[%clk 0:02:10.7]} 25... Kg8 {[%clk 0:00:08.5]} 26. Nd8+ {[%clk 0:02:01.5]}
26... Kf8 {[%clk 0:00:06.2]} 27. Nc6 {[%clk 0:01:54.8]} 27... Nf6 {[%clk
0:00:02.7]} 28. Nxe7 {[%clk 0:01:51.1]} 1-0

[Event "Late-Titled-Tuesday-Blitz-October-17-2023"]
[Site "Chess.com"]
[Date "2023.10.17"]
[Round "2"]
[White "ToddBryant"]
[Black "Rumpel-VK"]
[Result "0-1"]
[WhiteElo "2330"]
[BlackElo "2521"]
[TimeControl "180+1"]
[EndTime "14:15:43 PDT"]
[Termination "Rumpel-VK won by checkmate"]

1. e4 {[%clk 0:03:00]} 1... c5 {[%clk 0:02:54.4]} 2. Nf3 {[%clk 0:02:59.5]} 2...
Nc6 {[%clk 0:02:45.2]} 3. d4 {[%clk 0:02:59.5]} 3... cxd4 {[%clk 0:02:44.6]} 4.
Nxd4 {[%clk 0:03:00.4]} 4... e5 {[%clk 0:02:45.1]} 5. Nb5 {[%clk 0:03:00]} 5...
a6 {[%clk 0:02:45.2]} 6. Nd6+ {[%clk 0:02:59.5]} 6... Bxd6 {[%clk 0:02:45.6]} 7.
Qxd6 {[%clk 0:03:00.4]} 7... Qe7 {[%clk 0:02:46.2]} 8. Qd1 {[%clk 0:03:00.4]}
8... Nf6 {[%clk 0:02:46.4]} 9. Nc3 {[%clk 0:03:00.5]} 9... Nd4 {[%clk
0:02:46.9]} 10. Bg5 {[%clk 0:02:53.4]} 10... Qb4 {[%clk 0:02:46.4]} 11. Bd3
{[%clk 0:01:11.3]} 11... Qxb2 {[%clk 0:02:39.6]} 12. Ne2 {[%clk 0:01:00.7]}
12... Nxe2 {[%clk 0:02:32.6]} 13. Kxe2 {[%clk 0:01:01.6]} 13... d5 {[%clk
0:02:09.6]} 14. Bxf6 {[%clk 0:00:51.8]} 14... gxf6 {[%clk 0:02:08.3]} 15. exd5
{[%clk 0:00:43]} 15... Bg4+ {[%clk 0:02:06.1]} 16. f3 {[%clk 0:00:42.4]} 16...
Bh5 {[%clk 0:02:05.8]} 17. g4 {[%clk 0:00:32.4]} 17... Bg6 {[%clk 0:02:03.7]}
18. Bf5 {[%clk 0:00:32.8]} 18... Bxf5 {[%clk 0:02:02.2]} 19. gxf5 {[%clk
0:00:33.7]} 19... Rc8 {[%clk 0:02:01.7]} 20. Rc1 {[%clk 0:00:29.7]} 20... Rg8
{[%clk 0:01:58.8]} 21. Kf2 {[%clk 0:00:25.5]} 21... Qb4 {[%clk 0:01:51.4]} 22.
h4 {[%clk 0:00:19.3]} 22... Qf4 {[%clk 0:01:49.7]} 23. Rg1 {[%clk 0:00:07.3]}
23... Qh2+ {[%clk 0:01:46.4]} 24. Ke3 {[%clk 0:00:06.5]} 24... Rc3+ {[%clk
0:01:45.4]} 25. Ke4 {[%clk 0:00:03.7]} 25... Qf4# {[%clk 0:01:44.8]} 0-1

[Event "Late-Titled-Tuesday-Blitz-October-17-2023"]
[Site "Chess.com"]
[Date "2023.10.17"]
[Round "2"]
[White "Truequitos"]
[Black "Hirna2005"]
[Result "1-0"]
[WhiteElo "2504"]
[BlackElo "2317"]
[TimeControl "180+1"]
[EndTime "14:15:45 PDT"]
[Termination "Truequitos won by resignation"]

1. Nf3 {[%clk 0:03:00]} 1... g6 {[%clk 0:03:00.7]} 2. d4 {[%clk 0:02:59.7]} 2...
Bg7 {[%clk 0:03:01.4]} 3. Bf4 {[%clk 0:03:00.1]} 3... d6 {[%clk 0:03:01.8]} 4.
Nc3 {[%clk 0:03:00.6]} 4... Nf6 {[%clk 0:03:01.6]} 5. Qd2 {[%clk 0:03:01]} 5...
Nc6 {[%clk 0:02:59]} 6. Bh6 {[%clk 0:03:01]} 6... Bxh6 {[%clk 0:02:57.3]} 7.
Qxh6 {[%clk 0:03:00.8]} 7... Bg4 {[%clk 0:02:57.4]} 8. O-O-O {[%clk 0:02:57.7]}
8... Qd7 {[%clk 0:02:52.7]} 9. h3 {[%clk 0:02:57.4]} 9... Bxf3 {[%clk
0:02:52.2]} 10. gxf3 {[%clk 0:02:56.9]} 10... O-O-O {[%clk 0:02:50.9]} 11. h4
{[%clk 0:02:55.9]} 11... Kb8 {[%clk 0:02:49.7]} 12. Bh3 {[%clk 0:02:55.3]} 12...
e6 {[%clk 0:02:47.9]} 13. d5 {[%clk 0:02:55.3]} 13... Ne5 {[%clk 0:02:39.5]} 14.
Qg5 {[%clk 0:02:49]} 14... Qe7 {[%clk 0:02:30.6]} 15. dxe6 {[%clk 0:02:43.2]}
15... fxe6 {[%clk 0:02:29.4]} 16. f4 {[%clk 0:02:41.1]} 16... Nc6 {[%clk
0:02:10.8]} 17. e3 {[%clk 0:02:29.3]} 17... Rde8 {[%clk 0:02:07.2]} 18. Bg2
{[%clk 0:02:23.3]} 18... d5 {[%clk 0:01:54.8]} 19. a3 {[%clk 0:02:05.8]} 19...
h6 {[%clk 0:01:52.8]} 20. Qg3 {[%clk 0:02:04.6]} 20... Rhg8 {[%clk 0:01:52.8]}
21. Bf3 {[%clk 0:02:01]} 21... Qc5 {[%clk 0:01:47.4]} 22. Kb1 {[%clk 0:01:57.3]}
22... a6 {[%clk 0:01:39.6]} 23. Qh3 {[%clk 0:01:52.3]} 23... h5 {[%clk
0:01:30.6]} 24. Rhg1 {[%clk 0:01:51.1]} 24... b5 {[%clk 0:01:18]} 25. Na2 {[%clk
0:01:48]} 25... b4 {[%clk 0:01:14.8]} 26. axb4 {[%clk 0:01:46.7]} 26... Nxb4
{[%clk 0:01:14.5]} 27. Nxb4 {[%clk 0:01:46.2]} 27... Qxb4 {[%clk 0:01:14.7]} 28.
Rd3 {[%clk 0:01:46.2]} 28... Ka7 {[%clk 0:01:12]} 29. Rb3 {[%clk 0:01:43.5]}
29... Qd6 {[%clk 0:01:10.9]} 30. Qf1 {[%clk 0:01:40.9]} 30... Rb8 {[%clk
0:01:09.7]} 31. Rxb8 {[%clk 0:01:40.6]} 31... Kxb8 {[%clk 0:01:06.1]} 32. Qd3
{[%clk 0:01:40.6]} 32... Ka7 {[%clk 0:00:45.9]} 33. Rxg6 {[%clk 0:01:38.1]}
33... Rf8 {[%clk 0:00:43.8]} 34. Rxf6 {[%clk 0:01:36.7]} 34... Rxf6 {[%clk
0:00:40.4]} 35. Qd4+ {[%clk 0:01:36.8]} 35... c5 {[%clk 0:00:35.8]} 36. Qxf6
{[%clk 0:01:36.6]} 36... c4 {[%clk 0:00:36.3]} 37. Qd4+ {[%clk 0:01:35.6]} 37...
Kb7 {[%clk 0:00:36]} 38. Qxc4 {[%clk 0:01:35.4]} 1-0

[Event "Late-Titled-Tuesday-Blitz-October-17-2023"]
[Site "Chess.com"]
[Date "2023.10.17"]
[Round "2"]
[White "dadice10"]
[Black "Goryachkina"]
[Result "1/2-1/2"]
[WhiteElo "2224"]
[BlackElo "2650"]
[TimeControl "180+1"]
[EndTime "14:15:47 PDT"]
[Termination "Game drawn by repetition"]

1. e4 {[%clk 0:03:00.9]} 1... e6 {[%clk 0:02:59.2]} 2. d4 {[%clk 0:02:59.8]}
2... d5 {[%clk 0:02:59.2]} 3. Nc3 {[%clk 0:02:59.8]} 3... Nf6 {[%clk 0:02:59.2]}
4. Bg5 {[%clk 0:02:59.1]} 4... dxe4 {[%clk 0:02:57.4]} 5. Nxe4 {[%clk
0:02:57.8]} 5... Be7 {[%clk 0:02:57.6]} 6. Nxf6+ {[%clk 0:02:57.2]} 6... Bxf6
{[%clk 0:02:56.6]} 7. Bxf6 {[%clk 0:02:57.2]} 7... Qxf6 {[%clk 0:02:56.3]} 8.
Qd3 {[%clk 0:02:57.7]} 8... Nc6 {[%clk 0:02:53]} 9. O-O-O {[%clk 0:02:53.5]}
9... Bd7 {[%clk 0:02:45.3]} 10. Nf3 {[%clk 0:02:48.9]} 10... O-O-O {[%clk
0:02:43.7]} 11. Qe4 {[%clk 0:02:47.4]} 11... h6 {[%clk 0:02:41.1]} 12. Bd3
{[%clk 0:02:43.2]} 12... Kb8 {[%clk 0:02:40.4]} 13. Rhf1 {[%clk 0:02:39.9]}
13... Rhe8 {[%clk 0:02:36.9]} 14. Ne5 {[%clk 0:02:38.3]} 14... Nxe5 {[%clk
0:02:33.2]} 15. dxe5 {[%clk 0:02:39.2]} 15... Qe7 {[%clk 0:02:33.4]} 16. Kb1
{[%clk 0:02:36.3]} 16... Bc6 {[%clk 0:02:32.3]} 17. Qg4 {[%clk 0:02:35.8]} 17...
g6 {[%clk 0:02:29.9]} 18. Be4 {[%clk 0:02:33]} 18... h5 {[%clk 0:02:15]} 19. Qf3
{[%clk 0:02:28.3]} 19... Bxe4 {[%clk 0:02:12]} 20. Qxe4 {[%clk 0:02:29.2]} 20...
a6 {[%clk 0:02:10.8]} 21. a3 {[%clk 0:02:26.2]} 21... Qg5 {[%clk 0:02:05.6]} 22.
f4 {[%clk 0:02:23.1]} 22... Qg4 {[%clk 0:02:01]} 23. Qf3 {[%clk 0:02:10.9]}
23... Rxd1+ {[%clk 0:01:56]} 24. Rxd1 {[%clk 0:02:06.1]} 24... Qxf3 {[%clk
0:01:53.5]} 25. gxf3 {[%clk 0:02:07]} 25... Kc8 {[%clk 0:01:51.4]} 26. Kc1
{[%clk 0:02:06.5]} 26... Rf8 {[%clk 0:01:46.6]} 27. Rg1 {[%clk 0:02:04.9]} 27...
Kd7 {[%clk 0:01:40.1]} 28. Kd2 {[%clk 0:02:02.6]} 28... Kc6 {[%clk 0:01:39.8]}
29. Ke3 {[%clk 0:02:02.6]} 29... Rd8 {[%clk 0:01:39.2]} 30. Rg2 {[%clk 0:01:53]}
30... a5 {[%clk 0:01:33.3]} 31. h4 {[%clk 0:01:50.1]} 31... a4 {[%clk
0:01:31.7]} 32. Rd2 {[%clk 0:01:48.4]} 32... Rd5 {[%clk 0:01:22.6]} 33. Rxd5
{[%clk 0:01:44]} 33... Kxd5 {[%clk 0:01:20]} 34. Kd3 {[%clk 0:01:42.3]} 34... b5
{[%clk 0:01:16.9]} 35. b3 {[%clk 0:01:40.1]} 35... c5 {[%clk 0:01:10.3]} 36.
bxa4 {[%clk 0:01:39]} 36... bxa4 {[%clk 0:01:09.4]} 37. c4+ {[%clk 0:01:38.8]}
37... Kc6 {[%clk 0:01:07.6]} 38. Ke4 {[%clk 0:01:34.8]} 38... Kd7 {[%clk
0:01:07.9]} 39. Ke3 {[%clk 0:01:34.5]} 39... Ke7 {[%clk 0:01:06.7]} 40. Kd3
{[%clk 0:01:34]} 40... Kd7 {[%clk 0:00:57.4]} 41. Ke3 {[%clk 0:01:34]} 41... Kc6
{[%clk 0:00:57.4]} 42. Kd3 {[%clk 0:01:33.6]} 42... Kd7 {[%clk 0:00:56.9]} 43.
Ke3 {[%clk 0:01:33.7]} 1/2-1/2